{"text_format":"1","workbook":"xlsx","n_sheets":4,"sheets":["osnovne škole","srednje škole","Opći dio","Plan prihoda"],"not_rendered":{"charts":0,"images":0,"macros":0,"external_links":0,"defined_names":0,"comments":0,"pivot_tables":0},"unopened":[],"bounds":{"document_bytes":16777216,"sheet_cells":100000,"rows_first":2000,"rows_last":500,"rows_between":2000,"halvings":0,"cell_chars":16384,"cell_head_chars":4096},"cells_cut":0,"cells_raw":0,"read":"whole","date_system":"1900"}

{"sheet":"osnovne škole","index":0,"n_rows":83,"n_cols":12,"rows_kept":83,"cut":false,"hidden":false,"merged":[[0,0,0,11]]}
["PLAN RASHODA I IZDATAKA"]
["Šifra","Naziv","PRIJEDLOG PLANA ZA 2014.","Opći prihodi i primici","Vlastiti prihodi","Prihodi za posebne namjene","Pomoći","Donacije","Prihodi od nefinancijske imovine i nadoknade šteta s osnova osiguranja","Namjenski primici od zaduživanja","PROJEKCIJA PLANA ZA 2015.","PROJEKCIJA PLANA ZA 2016."]
[]
[null,"NAZIV KORISNIKA"]
[]
["Program","Osnovno i srednjoškolsko obrazovanje"]
["Aktivnost","Osnovnoškolsko obrazovanje-standard"]
[3,"RASHODI POSLOVANJA",{"$f":"C9+C11+C16","v":0},{"$f":"D9+D11+D16","v":0},0,0,0,0,0,0,0,0]
[31,"Rashodi za zaposlene",{"$f":"SUM(C10)","v":0},{"$f":"SUM(D10)","v":0},0,0,0,0,0,0]
[312,"Ostali rashodi za zaposlene"]
[32,"Materijalni rashodi",{"$f":"SUM(C12:C15)","v":0},{"$f":"SUM(D12:D15)","v":0},0,0,0,0,0,0]
[321,"Naknade troškova zaposlenima"]
[322,"Rashodi za materijal i energiju"]
[323,"Rashodi za usluge"]
[329,"Ostali nespomenuti rashodi poslovanja"]
[34,"Financijski  rashodi",{"$f":"SUM(C17)","v":0},{"$f":"SUM(D17)","v":0},0,0,0,0,0,0]
[343,"Ostali financijski rashodi"]
[null,"UKUPNO:",{"$f":"C8","v":0},{"$f":"D8","v":0},0,0,0,0,0,0,0,0]
[]
[]
["Aktivnost","Osnovnoškolsko obrazovanje - operativni plan"]
[3,"RASHODI POSLOVANJA",{"$f":"C23","v":0},{"$f":"D23","v":0},0,0,0,0,0,0,0,0]
[32,"Materijalni rashodi",{"$f":"SUM(C24:C25)","v":0},{"$f":"SUM(D24:D25)","v":0},0,0,0,0,0,0]
[322,"Rashodi za materijal i energiju"]
[323,"Rashodi za usluge"]
[null,"UKUPNO:",{"$f":"C22","v":0},{"$f":"D22","v":0},0,0,0,0,0,0,0,0]
[]
[]
[]
[]
["Aktivnost","Podizanje kvalitete i standarda kroz aktivnosti škola"]
[3,"RASHODI POSLOVANJA",{"$f":"C33+C37","v":0},{"$f":"D33+D37","v":0},0,0,0,0,0,0,0,0]
[31,"Rashodi za zaposlene",{"$f":"SUM(C34:C36)","v":0},{"$f":"SUM(D34:D36)","v":0},0,0,0,0,0,0]
[311,"Plaće (Bruto)"]
[312,"Ostali rashodi za zaposlene"]
[313,"Doprinosi na plaće"]
[32,"Materijalni rashodi",{"$f":"SUM(C38:C41)","v":0},{"$f":"SUM(D38:D41)","v":0},0,0,0,0,0,0]
[321,"Naknade troškova zaposlenima"]
[322,"Rashodi za materijal i energiju"]
[323,"Rashodi za usluge"]
[329,"Ostali nespomenuti rashodi poslovanja"]
[4,"Rashodi za nabavu nefinancijske imovine",{"$f":"C43","v":0},{"$f":"D43","v":0},0,0,0,0,0,0,0,0]
[42,"Rashodi za nabavu proizvedene dugotrajne  imovine",{"$f":"SUM(C44:C45)","v":0},{"$f":"SUM(D44:D45)","v":0},0,0,0,0,0,0]
[422,"Postrojenja i oprema"]
[424,"Knjige, umjetnička djela i ostale izložbene vrijednosti"]
[null,"UKUPNO:",{"$f":"C32+C42","v":0},{"$f":"D32+D42","v":0},0,0,0,0,0,0,0,0]
[]
[]
["T","Stručno osposobljavanje za rad bez zasnivanja radnog odnosa"]
[3,"RASHODI POSLOVANJA",{"$f":"C51","v":0},{"$f":"D51","v":0},0,0,0,0,0,0,0,0]
[32,"Materijalni rashodi",{"$f":"SUM(C52)","v":0},{"$f":"SUM(D52)","v":0},0,0,0,0,0,0]
[324,"Naknade trošk.osobama izvan radn.odn."]
[null,"UKUPNO:",{"$f":"C50","v":0},{"$f":"D50","v":0},0,0,0,0,0,0,0,0]
[]
[null,"SVEUKUPNO:",{"$f":"C18+C26+C46+C52","v":0},{"$f":"D18+D26+D46+D52","v":0},0,0,0,0,0,0,0,0]
[]
[]
[]
[]
[]
[]
[]
[]
[]
[]
[]
["A","Naziv aktivnosti"]
[3,"RASHODI POSLOVANJA"]
[31,"Rashodi za zaposlene"]
[311,"Plaće (Bruto)"]
[312,"Ostali rashodi za zaposlene"]
[313,"Doprinosi na plaće"]
[32,"Materijalni rashodi"]
[321,"Naknade troškova zaposlenima"]
[322,"Rashodi za materijal i energiju"]
[323,"Rashodi za usluge"]
[329,"Ostali nespomenuti rashodi poslovanja"]
[34,"Financijski  rashodi"]
[343,"Ostali financijski rashodi"]
[4,"Rashodi za nabavu nefinancijske imovine"]
[42,"Rashodi za nabavu proizvedene dugotrajne  imovine"]
[422,"Postrojenja i oprema"]
[424,"Knjige, umjetnička djela i ostale izložbene vrijednosti"]

{"sheet":"srednje škole","index":1,"n_rows":107,"n_cols":12,"rows_kept":107,"cut":false,"hidden":false,"merged":[[0,0,0,11]]}
["PLAN RASHODA I IZDATAKA"]
["Šifra","Naziv","PRIJEDLOG PLANA ZA 2014.","Opći prihodi i primici","Vlastiti prihodi","Prihodi za posebne namjene","Pomoći","Donacije","Prihodi od nefinancijske imovine i nadoknade šteta s osnova osiguranja","Namjenski primici od zaduživanja","PROJEKCIJA PLANA ZA 2015.","PROJEKCIJA PLANA ZA 2016."]
[]
[null,"MEDICINSKA  I  KEMIJSKA  ŠKOLA  "]
[null,"ŠIBENIK"]
["Program","Osnovno i srednjoškolsko obrazovanje"]
["Aktivnost","Srednjoškolsko obrazovanje-standard"]
[null,"PLAN  UKUPNO:",5354755,{"$f":"D24+D29+D92","v":5171800},{"$f":"E24","v":21000},158385,3570,null,null,null,5354755,5354755]
[3,"RASHODI POSLOVANJA",{"$f":"C10+C12+C17","v":614385},{"$f":"D10+D12+D17","v":435000},{"$f":"E10+E12+E17","v":21000},{"$f":"F10+F12+F17","v":158385},null,{"$f":"H10+H12+H17","v":0},{"$f":"I10+I12+I17","v":0},{"$f":"J10+J12+J17","v":0},{"$f":"K10+K12+K17","v":614385},614385]
[31,"Rashodi za zaposlene"]
[312,"Ostali rashodi za zaposlene"]
[32,"Materijalni rashodi",{"$f":"D12+E12+F12","v":612885},{"$f":"SUM(D13:D16)","v":433500},21000,158385,0,0,0,0,612885,612885]
[321,"Naknade troškova zaposlenima",193000,190000,3000]
[322,"Rashodi za materijal i energiju",91300,86300,5000]
[323,"Rashodi za usluge",157832,149832,8000]
[329,"Ostali nespomenuti rashodi poslovanja",170753,7368,5000,158385]
[34,"Financijski  rashodi",1500,{"$f":"SUM(D18)","v":1500},0,0,0,0,0,0,1500,1500]
[343,"Ostali financijski rashodi",1500,1500]
[4,"Rashodi za nabavu nefinancijske imovine",3570,null,null,null,3570]
[42,"Rashodi za nabavu proizvedene dugotrajne  imovine",3570,null,null,null,3570,null,null,null,3570,3570]
[422,"Postrojenja i oprema"]
[424,"Knjige, umjetnička djela i ostale izložbene vrijednosti",{"$f":"G22","v":3570},null,null,null,3570]
[]
[null,"UKUPNO:",{"$f":"C9+C20","v":617955},{"$f":"D9","v":435000},21000,158385,3570,0,0,0,{"$f":"K9+K20","v":617955},617955]
[]
[]
["Aktivnost","Srednjoškolsko obrazovanje - operativni plan"]
[3,"RASHODI POSLOVANJA",36800,{"$f":"D29","v":36800},0,0,0,0,0,0]
[32,"Materijalni rashodi",36800,{"$f":"SUM(D30:D31)","v":36800},0,0,0,0,0,0,36800,36800]
[322,"Rashodi za materijal i energiju"]
[323,"Rashodi za usluge",36800,36800]
[4,"Rashodi za nabavu nefinancijske imovine"]
[42,"Rashodi za nabavu proizvedene dugotrajne  imovine"]
[422,"Postrojenja i oprema"]
[424,"Knjige, umjetnička djela i ostale izložbene vrijednosti"]
[null,"UKUPNO:",{"$f":"C28+C34","v":36800},{"$f":"D28+D34","v":36800},{"$f":"E28","v":0},0,0,0,0,0,{"$f":"K29+K33","v":36800},36800]
[]
[]
[]
[]
[]
[]
["Aktivnost","Podizanje kvalitete i standarda kroz aktivnosti škola"]
[3,"RASHODI POSLOVANJA",{"$f":"C45+C49","v":0},{"$f":"D45+D49","v":0},0,0,0,0,0,0,0,0]
[31,"Rashodi za zaposlene",{"$f":"SUM(C46:C48)","v":0},{"$f":"SUM(D46:D48)","v":0},0,0,0,0,0,0]
[311,"Plaće (Bruto)"]
[312,"Ostali rashodi za zaposlene"]
[313,"Doprinosi na plaće"]
[32,"Materijalni rashodi",{"$f":"SUM(C50:C53)","v":0},{"$f":"SUM(D50:D53)","v":0},0,0,0,0,0,0]
[321,"Naknade troškova zaposlenima"]
[322,"Rashodi za materijal i energiju"]
[323,"Rashodi za usluge"]
[329,"Ostali nespomenuti rashodi poslovanja"]
[4,"Rashodi za nabavu nefinancijske imovine",{"$f":"C55","v":0},{"$f":"D55","v":0},0,0,0,0,0,0,0,0]
[42,"Rashodi za nabavu proizvedene dugotrajne  imovine",{"$f":"SUM(C56:C57)","v":0},{"$f":"SUM(D56:D57)","v":0},0,0,0,0,0,0]
[422,"Postrojenja i oprema"]
[424,"Knjige, umjetnička djela i ostale izložbene vrijednosti"]
[null,"UKUPNO:",{"$f":"C44+C54","v":0},{"$f":"D44+D54","v":0},0,0,0,0,0,0,0,0]
[]
[]
["T","Projekti Europske unije"]
[3,"RASHODI POSLOVANJA",{"$f":"C63","v":0},{"$f":"D63","v":0},0,0,0,0,0,0,0,0]
[31,"Rashodi za zaposlene",{"$f":"SUM(C64)","v":0},{"$f":"SUM(D64)","v":0},0,0,0,0,0,0]
[312,"Ostali rashodi za zaposlene"]
[32,"Materijalni rashodi",{"$f":"SUM(C66:C67)","v":0},{"$f":"SUM(D66:D67)","v":0},0,0,0,0,0,0]
[323,"Rashodi za usluge"]
[329,"Ostali nespomenuti rashodi poslovanja"]
[4,"Rashodi za nabavu nefinancijske imovine",{"$f":"C573","v":0},{"$f":"D573","v":0},0,0,0,0,0,0,0,0]
[42,"Rashodi za nabavu proizvedene dugotrajne  imovine",{"$f":"SUM(C70)","v":0},{"$f":"SUM(D70)","v":0},0,0,0,0,0,0]
[422,"Postrojenja i oprema"]
[null,"UKUPNO:",{"$f":"C62+C68","v":0},{"$f":"D62+D68","v":0},0,0,0,0,0,0,0,0]
[]
[]
["T","Stručno osposobljavanje za rad bez zasnivanja radnog odnosa"]
[3,"RASHODI POSLOVANJA",{"$f":"C76","v":0},{"$f":"D76","v":0},0,0,0,0,0,0,0,0]
[32,"Materijalni rashodi",{"$f":"SUM(C77)","v":0},{"$f":"SUM(D77)","v":0},0,0,0,0,0,0,0]
[324,"Naknade trošk.osobama izvan radn.odn."]
[null,"UKUPNO:",{"$f":"C75","v":0},{"$f":"D75","v":0},0,0,0,0,0,0,0,0]
[]
[]
["A ","Prometne jedinice mladeži"]
[3,"RASHODI POSLOVANJA",{"$f":"C83","v":0},{"$f":"D83","v":0},0,0,0,0,0,0,0,0]
[32,"Materijalni rashodi",{"$f":"SUM(C84)","v":0},{"$f":"SUM(D84)","v":0},0,0,0,0,0,0]
[329,"Ostali nespomenuti rashodi poslovanja"]
[null,"UKUPNO:",{"$f":"C82","v":0},{"$f":"D82","v":0},0,0,0,0,0,0,0,0]
[]
[null,"SVEUKUPNO:",{"$f":"C58+C71+C78+C84","v":0},0,0,0,0,0,0,0,0,0]
[]
[]
[]
["A","Naziv aktivnosti"]
[3,"RASHODI POSLOVANJA",4700000,4700000]
[31,"Rashodi za zaposlene",{"$f":"SUM(C94+C95+C96)","v":4700000},{"$f":"SUM(D94+D95+D96)","v":4700000},null,null,null,null,null,null,4700000,4700000]
[311,"Plaće (Bruto)",4080000,4080000]
[312,"Ostali rashodi za zaposlene",10000,10000]
[313,"Doprinosi na plaće",610000,610000]
[32,"Materijalni rashodi"]
[321,"Naknade troškova zaposlenima"]
[322,"Rashodi za materijal i energiju"]
[323,"Rashodi za usluge"]
[329,"Ostali nespomenuti rashodi poslovanja"]
[34,"Financijski  rashodi"]
[343,"Ostali financijski rashodi"]
[4,"Rashodi za nabavu nefinancijske imovine"]
[42,"Rashodi za nabavu proizvedene dugotrajne  imovine"]
[422,"Postrojenja i oprema"]
[424,"Knjige, umjetnička djela i ostale izložbene vrijednosti"]

{"sheet":"Opći dio","index":2,"n_rows":22,"n_cols":8,"rows_kept":22,"cut":false,"hidden":false,"merged":[[6,0,6,4],[7,0,7,4],[9,0,9,4],[10,0,10,4],[0,0,0,7],[1,0,1,7],[2,0,2,7],[5,0,5,4],[17,0,17,4],[18,0,18,4],[19,0,19,4],[21,0,21,4],[11,0,11,4],[12,0,12,7],[14,0,14,4],[15,0,15,7]]}
["PRIJEDLOG FINANCIJSKOG PLANA (proračunski korisnik)  ZA 2014. I                                                                                                                                                PROJEKCIJA PLANA ZA  2015. I 2016. GODINU"]
["OPĆI DIO"]
[]
[]
[null,null,null,null,null,"Prijedlog plana \nza 2014.","Projekcija plana\nza 2015.","Projekcija plana \nza 2016."]
["PRIHODI UKUPNO",null,null,null,null,5354755,5354755,5354755]
["PRIHODI POSLOVANJA",null,null,null,null,5354755,5354755,5354755]
["PRIHODI OD NEFINANCIJSKE IMOVINE",null,null,null,null,0,0,0]
["RASHODI UKUPNO",null,null,null,null,5354755,5354755,5354755]
["RASHODI  POSLOVANJA",null,null,null,null,5354755,5354755,5354755]
["RASHODI ZA NEFINANCIJSKU IMOVINU"]
["RAZLIKA - VIŠAK / MANJAK",null,null,null,null,{"$f":"+F6-F9","v":0},{"$f":"+G6-G9","v":0},{"$f":"+H6-H9","v":0}]
[]
[null,null,null,null,null,"Prijedlog plana \nza 2014.","Projekcija plana\nza 2015.","Projekcija plana \nza 2016."]
["VIŠAK/MANJAK IZ PRETHODNE GODINE",null,null,null,null,0,0,0]
[]
[null,null,null,null,null,"Prijedlog plana \nza 2014.","Projekcija plana\nza 2015.","Projekcija plana \nza 2016."]
["PRIMICI OD FINANCIJSKE IMOVINE I ZADUŽIVANJA"]
["IZDACI ZA FINANCIJSKU IMOVINU I OTPLATE ZAJMOVA"]
["NETO FINANCIRANJE"]
[]
["VIŠAK / MANJAK + NETO FINANCIRANJE",null,null,null,null,{"$f":"SUM(F12,F15,F20)","v":0},{"$f":"SUM(G12,G15,G20)","v":0},{"$f":"SUM(H12,H15,H20)","v":0}]

{"sheet":"Plan prihoda","index":3,"n_rows":36,"n_cols":8,"rows_kept":36,"cut":false,"hidden":false,"merged":[[24,1,24,7],[26,1,26,7],[35,1,35,7],[147,0,147,4],[0,0,0,7],[2,1,2,7],[14,1,14,7],[16,1,16,7]]}
["PLAN PRIHODA I PRIMITAKA"]
[null,null,null,null,null,null,null,"u kunama"]
["Izvor prihoda i primitaka","2014."]
["Oznaka                           rač.iz                                      računskog                                         plana","Opći prihodi i primici","Vlastiti prihodi","Prihodi za posebne namjene","Pomoći","Donacije ","Prihodi od nefinancijske imovine i nadoknade šteta s osnova osiguranja","Namjenski primici od zaduživanja"]
[652,null,null,158385]
[661,null,21000]
[671,471800,null,null,3570]
[671,4700000]
[]
[]
[]
[]
[]
["Ukupno (po izvorima)",{"$f":"B7+B8","v":5171800},{"$f":"+C6","v":21000},{"$f":"D5","v":158385},3570,{"$f":"+F6","v":0},0,0]
["Ukupno prihodi i primici za 2014.",{"$f":"B14+C14+D14+E14+F14+G14+H14","v":5354755}]
[]
["Izvor prihoda i primitaka","2015."]
["Oznaka                           rač.iz                                      računskog                                         plana","Opći prihodi i primici","Vlastiti prihodi","Prihodi za posebne namjene","Pomoći","Donacije ","Prihodi od nefinancijske imovine i nadoknade šteta s osnova osiguranja","Namjenski primici od zaduživanja"]
[652,null,null,158385]
[661,null,21000]
[671,471800,null,null,3570]
[671,4700000]
[]
["Ukupno (po izvorima)",5171800,{"$f":"+C20","v":21000},{"$f":"D19","v":158385},3570,{"$f":"+F20","v":0},0,0]
["Ukupno prihodi i primici za 2015.",5354755]
[]
["Izvor prihoda i primitaka","2016."]
["Oznaka                           rač.iz                                      računskog                                         plana","Opći prihodi i primici","Vlastiti prihodi","Prihodi za posebne namjene","Pomoći","Donacije ","Prihodi od nefinancijske imovine i nadoknade šteta s osnova osiguranja","Namjenski primici od zaduživanja"]
[652,null,null,158385]
[661,null,21000]
[671,471800,null,null,3570]
[671,4700000]
[]
[]
["Ukupno (po izvorima)",5171800,{"$f":"+C30","v":21000},{"$f":"D29","v":158385},3570,{"$f":"+F30","v":0},0,0]
["Ukupno prihodi i primici za 2016.",5354755]